Workbook

Sheet Sch 1 - Summary Avg
A2: DUKE ENERGY KENTUCKY
A3: FUEL ADJUSTMENT CLAUSE SCHEDULE
C5: Twelve Month Average Expense Month: | E5: October 2022
A7: Line
A8: No. | C8: Description | E8: Amount | G8: Rate ($/kWh)
A10: =MAX(A$9:A9)+1 -> 1 | C10: Fuel Fm (Schedule 2, Line K) | E10: ='Sch 2 - Fuel Cost Avg'!D43 -> 16673049.58
A12: =MAX(A$9:A11)+1 -> 2 | C12: Sales Sm (Schedule 3, Line C) | D12: ÷ | E12: =ROUND('Sch 3 - Sales Avg'!D26,0) -> 329352393 | G12: =ROUND(E10/E12,6) -> 0.050624
A14: =MAX(A$9:A13)+1 -> 3 | C14: Base Fuel Rate (Fb/Sb) per PSC Order in Case No. 2021-00057 | F14: (-) | G14: 0.025401
A16: =MAX(A$9:A15)+1 -> 4 | C16: Fuel Adjustment Clause Rate (Line 2 - Line 3) | G16: =G12-G14 -> 0.025223
C23: Effective Date for Billing:
C26: Submitted by:
C28: Title:
C30: Date Submitted:

Sheet Sch 2 - Fuel Cost Avg
A2: DUKE ENERGY KENTUCKY
A3: FUEL COST SCHEDULE
F4: 2021 | G4: 2021 | H4: 2022 | I4: 2022 | J4: 2022 | K4: 2022 | L4: 2022 | M4: 2022 | N4: 2022 | O4: 2022 | P4: 2022 | Q4: 2022
A5: =CONCATENATE("Twelve Month Average Expense Month: ",'Sch 1 - Summary Avg'!E5) -> Twelve Month Average Expense Month: October 2022 | F5: November | G5: December | H5: January | I5: February | J5: March | K5: April | L5: May | M5: June | N5: July | O5: August | P5: September | Q5: October
F6: Schedule 6 | G6: Schedule 6 | H6: Schedule 6 | I6: Schedule 6 | J6: Schedule 6 | K6: Schedule 6 | L6: Schedule 6 | M6: Schedule 4 | N6: Schedule 4 | O6: Schedule 4 | P6: Schedule 2 | Q6: Schedule 2
D7: Dollars ($) | F7: Dollars ($) | G7: Dollars ($) | H7: Dollars ($) | I7: Dollars ($) | J7: Dollars ($) | K7: Dollars ($) | L7: Dollars ($) | M7: Dollars ($) | N7: Dollars ($) | O7: Dollars ($) | P7: Dollars ($) | Q7: Dollars ($)
A8: A. Company Generation
B9: Coal Burned | C9: (+) | D9: =AVERAGE(F9:Q9) -> 4710738.649 | F9: 0 | G9: 1055995.12 | H9: 7476852.69 | I9: 6414479.82 | J9: 6885984.78 | K9: 4444351.24 | L9: 6032691.47 | M9: 8522736.84 | N9: 7226972.27 | O9: 3207071.35 | P9: 5261728.21 | Q9: 0
B10: Oil Burned | C10: (+) | D10: =AVERAGE(F10:Q10) -> 309693.0158 | F10: 89049.96 | G10: 454576.85 | H10: 569348.65 | I10: 371895.47 | J10: 154732.62 | K10: 184625.12 | L10: 584268.14 | M10: 242396.51 | N10: 128605.31 | O10: 363894.41 | P10: 467406.17 | Q10: 105516.98
B11: Gas Burned | C11: (+) | D11: 588141.1467 | F11: 530302.8 | G11: -12741.4 | H11: 1066985.31 | I11: 25500 | J11: 312250 | K11: 290094.55 | L11: 218.5 | M11: 893000 | N11: 2102900 | O11: 1206684 | P11: 214650 | Q11: 427850
B12: Net Fuel Related RTO Billing Line Items | C12: (-) | D12: 32191.88417 | F12: 433172.73 | G12: -206177.84 | H12: -591448.66 | I12: -488166.83 | J12: 63094.8 | K12: -328746.53 | L12: -589284.53 | M12: 830446.78 | N12: 371897.07 | O12: 366083.23 | P12: -259203.65 | Q12: 784636.04
B13: Fuel (assigned cost during Forced Outage(a)) | C13: (+) | D13: 213098.4483 | F13: 0 | G13: 123617.55 | H13: 11241.72 | I13: 271590.96 | J13: 0 | K13: 0 | L13: 953898.36 | M13: 358737.7 | N13: 471852.06 | O13: 324894.14 | P13: 41348.89 | Q13: 0
B14: Fuel (substitute cost during Forced Outage(a)) | C14: (-) | D14: 38088.61417 | F14: 0 | G14: 0 | H14: 0 | I14: 4970.62 | J14: 0 | K14: 0 | L14: 56.42 | M14: 62290.34 | N14: 346958.19 | O14: 42787.8 | P14: 0 | Q14: 0
B15: Sub-Total | D15: =D9+D10+D11-D12+D13-D14 -> 5751390.762 | F15: =F9+F10+F11-F12+F13-F14 -> 186180.03 | G15: 1827625.96 | H15: 9715877.03 | I15: 7566662.46 | J15: 7289872.6 | K15: 5247817.44 | L15: 8160304.58 | M15: 9124133.93 | N15: 9211474.38 | O15: 4693672.87 | P15: 6244336.92 | Q15: -251269.06
A17: B. Purchases
B18: Economy Purchases | C18: (+) | D18: =AVERAGE(F18:Q18) -> 11569322.71 | F18: 18385750.28 | G18: 16480073.26 | H18: 2806649.29 | I18: 4128979.51 | J18: 3484268.43 | K18: 9444577.17 | L18: 7504981.11 | M18: 4801436.83 | N18: 11706005.62 | O18: 28564509.77 | P18: 14240152.39 | Q18: 17284488.91
B19: Other Purchases | C19: (+) | D19: 0 | F19: 0 | G19: 0 | H19: 0 | I19: 0 | J19: 0 | K19: 0 | L19: 0 | M19: 0 | N19: 0 | O19: 0 | P19: 0 | Q19: 0
B20: Other Purchases (substitute for Forced Outage(a)) | C20: (-) | D20: 659648.0317 | F20: 0 | G20: 190400.08 | H20: 27556.86 | I20: 649303.6 | J20: 0 | K20: 0 | L20: 3029095.63 | M20: 1212553.95 | N20: 1488752.8 | O20: 1190624.11 | P20: 127489.35 | Q20: 0
B21: Less purchases above highest cost units | C21: (-) | D21: 528.0633333 | F21: 0 | G21: 0 | H21: 0 | I21: 0 | J21: 0 | K21: 0 | L21: 0 | M21: 6336.76 | N21: 0 | O21: 0 | P21: 0 | Q21: 0
B22: Sub-Total | D22: =SUM(D18:D19)-D20-D21 -> 10909146.62 | F22: =SUM(F18:F19)-F20-F21 -> 18385750.28 | G22: 16289673.18 | H22: 2779092.43 | I22: 3479675.91 | J22: 3484268.43 | K22: 9444577.17 | L22: 4475885.48 | M22: 3582546.12 | N22: 10217252.82 | O22: 27373885.66 | P22: 14112663.04 | Q22: 17284488.91
A24: C. Non-Native Sales Fuel Costs | C24: (-) | D24: =AVERAGE(F24:Q24) -> 453512.92 | F24: 0 | G24: 35172.9 | H24: 1285864.43 | I24: 332288.61 | J24: 471414.74 | K24: 522618.37 | L24: 812950.95 | M24: 815279.32 | N24: 548363.68 | O24: 296731.87 | P24: 237388.9 | Q24: 84081.27
A26: D. Total Fuel Costs (A + B - C) | C26: (+) | D26: =D15+D22-D24 -> 16207024.46 | F26: =F15+F22-F24 -> 18571930.31 | G26: 18082126.24 | H26: 11209105.03 | I26: 10714049.76 | J26: 10302726.29 | K26: 14169776.24 | L26: 11823239.11 | M26: 11891400.73 | N26: 18880363.52 | O26: 31770826.66 | P26: 20119611.06 | Q26: 16949138.58
A28: E. Total Company Over or (Under) Recovery from Schedule 5, Line 14 | C28: (-) | D28: ='Sch 5 - Over (Under) Act'!E36 -> -1059244.6
A30: F. Adjustment indicating the difference in actual fuel cost for the
B31: ="month of "&TEXT(DATEVALUE('Sch 1 - Summary Avg'!E5)-28,"mmmm yyyy")&" and the estimated cost orginally" -> month of September 2022 and the estimated cost orginally
B32: ="reported "&TEXT('Sch 4 - Final Fuel Cost Act'!D26,"$0,000.00")&" - "&TEXT(P26,"$0,000.00") -> reported $20,106,481.68 - $20,119,611.06 | C32: (+) | D32: ='Sch 4 - Final Fuel Cost Act'!D26-'Sch 2 - Fuel Cost Avg'!P26 -> -13129.37484
B33: (actual) (estimate)
A35: G. RTO Resettlements for prior periods from Schedule 6, Line G | C35: (+) | D35: ='Sch 6 - RTO Fuel Cost Act'!E33 -> -580090.1097
A37: H. Prior Period Correction | C37: (+) | D37: 0
A39: I. Deferral of Current Purchased Power Costs | C39: (-) | D39: 0
A41: J. Amount of Deferred Purchased Power Costs included in the filing | C41: (+) | D41: 0
A43: K. Grand Total Fuel Cost (D - E + F + G + H - I + J) | D43: =D26-D28+D32-D39+D35+D37+D41 -> 16673049.58 | F43: =F26 -> 18571930.31 | G43: =G26 -> 18082126.24 | H43: 11209105.03 | I43: 10714049.76 | J43: 10302726.29 | K43: 14169776.24 | L43: 11823239.11 | M43: 11891400.73 | N43: 18880363.52 | O43: 31770826.66 | P43: 20119611.06 | Q43: 16949138.58
B47: Note: (a) Forced Outage as defined in 807 KAR 5:056.

Sheet Sch 3 - Sales Avg
A2: DUKE ENERGY KENTUCKY
A3: SALES SCHEDULE
A5: =CONCATENATE("Twelve Month Average Expense Month: ",'Sch 1 - Summary Avg'!E5) -> Twelve Month Average Expense Month: October 2022
F6: ='Sch 2 - Fuel Cost Avg'!F4 -> 2021 | G6: ='Sch 2 - Fuel Cost Avg'!G4 -> 2021 | H6: ='Sch 2 - Fuel Cost Avg'!H4 -> 2022 | I6: ='Sch 2 - Fuel Cost Avg'!I4 -> 2022 | J6: ='Sch 2 - Fuel Cost Avg'!J4 -> 2022 | K6: ='Sch 2 - Fuel Cost Avg'!K4 -> 2022 | L6: ='Sch 2 - Fuel Cost Avg'!L4 -> 2022 | M6: ='Sch 2 - Fuel Cost Avg'!M4 -> 2022 | N6: ='Sch 2 - Fuel Cost Avg'!N4 -> 2022 | O6: ='Sch 2 - Fuel Cost Avg'!O4 -> 2022 | P6: ='Sch 2 - Fuel Cost Avg'!P4 -> 2022 | Q6: ='Sch 2 - Fuel Cost Avg'!Q4 -> 2022
F7: ='Sch 2 - Fuel Cost Avg'!F5 -> November | G7: ='Sch 2 - Fuel Cost Avg'!G5 -> December | H7: ='Sch 2 - Fuel Cost Avg'!H5 -> January | I7: ='Sch 2 - Fuel Cost Avg'!I5 -> February | J7: ='Sch 2 - Fuel Cost Avg'!J5 -> March | K7: ='Sch 2 - Fuel Cost Avg'!K5 -> April | L7: ='Sch 2 - Fuel Cost Avg'!L5 -> May | M7: ='Sch 2 - Fuel Cost Avg'!M5 -> June | N7: ='Sch 2 - Fuel Cost Avg'!N5 -> July | O7: ='Sch 2 - Fuel Cost Avg'!O5 -> August | P7: ='Sch 2 - Fuel Cost Avg'!P5 -> September | Q7: ='Sch 2 - Fuel Cost Avg'!Q5 -> October
D8: kWh | F8: kWh | G8: =$F$8 -> kWh | H8: =$F$8 -> kWh | I8: kWh | J8: kWh | K8: kWh | L8: kWh | M8: kWh | N8: kWh | O8: kWh | P8: kWh | Q8: kWh
A10: A. | B10: Generation (Net) | C10: (+) | D10: =AVERAGE(F10:Q10) -> 199138808.3 | F10: 7944000 | G10: 31128900 | H10: 355827000 | I10: 272467500 | J10: 282677800 | K10: 177365000 | L10: 281855000 | M10: 369741500 | N10: 306513000 | O10: 125951000 | P10: 171048000 | Q10: 7147000
B12: Purchases Including Interchange-In | C12: (+) | D12: =AVERAGE(F12:Q12) -> 163416086.8 | F12: 305752619 | G12: 304669964 | H12: 59046028 | I12: 77618700 | J12: 62007070 | K12: 136902100 | L12: 93608770 | M12: 42561250 | N12: 131990110 | O12: 292215300 | P12: 178967520 | Q12: 275653610
B14: Sub-Total | D14: =SUM(D10:D12) -> 362554895.1 | F14: =SUM(F10:F12) -> 313696619 | G14: 335798864 | H14: 414873028 | I14: 350086200 | J14: 344684870 | K14: 314267100 | L14: 375463770 | M14: 412302750 | N14: 438503110 | O14: 418166300 | P14: 350015520 | Q14: 282800610
A17: B. | B17: Pumped Storage Energy | C17: (+) | D17: =AVERAGE(F17:Q17) -> 0 | F17: 0 | G17: 0 | H17: 0 | I17: 0 | J17: 0 | K17: 0 | L17: 0 | M17: 0 | N17: 0 | O17: 0 | P17: 0 | Q17: 0
B19: Non-Native Sales Including Interchange Out | C19: (+) | D19: =AVERAGE(F19:Q19) -> 12123673.33 | F19: 0 | G19: 1048300 | H19: 19619560 | I19: 15867250 | J19: 16088530 | K19: 12588990 | L19: 36451370 | M19: 24849720 | N19: 7529830 | O19: 4015020 | P19: 6510510 | Q19: 915000
B21: System Losses (a) | C21: (+) | D21: =AVERAGE(F21:Q21) -> 21078829.08 | F21: 13802651 | G21: 15733277 | H21: 19367420 | I21: 17045166 | J21: 16758413 | K21: 16290618 | L21: 19323707 | M21: 26346806 | N21: 39649542 | O21: 30233043 | P21: 22327826 | Q21: 16067480
B23: Sub-Total | D23: =SUM(D17:D21) -> 33202502.42 | F23: =SUM(F17:F21) -> 13802651 | G23: 16781577 | H23: 38986980 | I23: 32912416 | J23: 32846943 | K23: 28879608 | L23: 55775077 | M23: 51196526 | N23: 47179372 | O23: 34248063 | P23: 28838336 | Q23: 16982480
A26: C. | B26: Total Sales (A - B) | D26: =D14-D23 -> 329352392.7 | F26: =F14-F23 -> 299893968 | G26: 319017287 | H26: 375886048 | I26: 317173784 | J26: 311837927 | K26: 285387492 | L26: 319688693 | M26: 361106224 | N26: 391323738 | O26: 383918237 | P26: 321177184 | Q26: 265818130
B29: Note: (a) Average of prior 12 months.

Sheet Sch 4 - Final Fuel Cost Act
A2: DUKE ENERGY KENTUCKY
A3: FINAL FUEL COST SCHEDULE
A5: ="Expense Month: "&TEXT(DATEVALUE('Sch 1 - Summary Avg'!E5)-28,"mmmm yyyy") -> Expense Month: September 2022
D7: Dollars ($)
A8: A. Company Generation
B9: Coal Burned | C9: (+) | D9: 5261728.92
B10: Oil Burned | C10: (+) | D10: 467406.17
B11: Gas Burned | C11: (+) | D11: 214650
B12: Net Fuel Related RTO Billing Line Items | C12: (-) | D12: -163765.93
B13: Fuel (assigned cost during Forced Outage(a)) | C13: (+) | D13: 10000.25
B14: Fuel (substitute cost during Forced Outage(a)) | C14: (-) | D14: 0
B15: Sub-Total | D15: =D9+D10+D11-D12+D13-D14 -> 6117551.27
A17: B. Purchases
B18: Economy Purchases | C18: (+) | D18: 14264370.09
B19: Other Purchases | C19: (+) | D19: 0
B20: Other Purchases (substitute for Forced Outage(a)) | C20: (-) | D20: 36136.7
B21: Less purchases above highest cost units | C21: (-) | D21: 0
B22: Sub-Total | D22: =SUM(D18:D19)-D20-D21 -> 14228233.39
A24: C. Non-Native Sales Fuel Costs | C24: (-) | D24: 239302.98
A26: D. Total Fuel Costs (A + B - C) | D26: =D15+D22-D24 -> 20106481.68
B29: Note: (a) Forced Outage as defined in 807 KAR 5:056.

Sheet Sch 5 - Over (Under) Act
A2: DUKE ENERGY KENTUCKY
A3: OVER OR (UNDER) RECOVERY SCHEDULE
A5: ="Twelve Month Average Expense Month: "&TEXT(DATEVALUE('Sch 1 - Summary Avg'!E5)-45,"mmmm yyyy") -> Twelve Month Average Expense Month: August 2022
A7: Line
A8: No. | C8: Description
A10: 1 | C10: FAC Rate Billed ($/kWh) | D10: (+) | E10: 0.014526
A12: 2 | C12: Retail kWh Billed at Above Rate | D12: (x) | E12: 259800468
A14: 3 | C14: FAC Revenue/(Refund) (Line 1 * Line 2) | E14: =ROUND(E12*E10,2) -> 3773861.6
A16: 4 | C16: kWh Used to Determine Last FAC Rate Billed | D16: (+) | E16: 332721065.5
A18: 5 | C18: Non-Jurisdictional kWh included in Line 4 | D18: (-) | E18: 0
A20: 6 | C20: Kentucky Jurisdictional kWh Included in Line 4 (Line 4 - Line 5) | E20: =E16-E18 -> 332721065.5
A22: 7 | C22: Recoverable FAC Revenue/(Refund) (Line 1 * Line 6) | E22: =ROUND(E20*E10,2) -> 4833106.2
A24: 8 | C24: Over or (Under) (Line 3 - Line 7) | E24: =E14-E22 -> -1059244.6
A26: 9 | C26: Total Sales (Schedule 3, Line C) | D26: (-) | E26: ='Sch 3 - Sales Avg'!D26 -> 329352392.7
A28: 10 | C28: Kentucky Jurisdictional Sales | D28: (÷) | E28: =E26 -> 329352392.7
A30: 11 | C30: Ratio of Total Sales to KY Jursidictional Sales (Line 9 ÷ Line 10) | E30: =E26/E28 -> 1
A32: 12 | C32: Total Company Over or (Under) Recovery (Line 8 * Line 11) | D32: (+) | E32: =ROUND(E30*E24,2) -> -1059244.6
A34: 13 | C34: Amount Over or (Under) Recovered in prior filings | D34: (-) | E34: 0
A36: 14 | C36: Total Company Over or (Under) Recovery | E36: =E32-E34 -> -1059244.6

Sheet Sch 6 - RTO Fuel Cost Act
A2: DUKE ENERGY KENTUCKY
A3: REGIONAL TRANSMISSION ORGANIZATION RESETTLEMENTS
A4: FUEL COST SCHEDULE
A6: ="Expense Month: "&TEXT(DATEVALUE('Sch 1 - Summary Avg'!E5)-105,"mmmm yyyy") -> Expense Month: June 2022
E8: Dollars ($)
A9: A. Company Generation
B10: Coal Burned | C10: (+) | E10: 8522736.85
B11: Oil Burned | C11: (+) | E11: 242396.51
B12: Gas Burned | C12: (+) | E12: 893000
B13: Net Fuel Related RTO Billing Line Items | C13: (-) | E13: 729656.84
B14: Fuel (assigned cost during Forced Outage(a)) | C14: (+) | E14: 362992.49
B15: Fuel (substitute cost during Forced Outage(a)) | C15: (-) | E15: 62290.34
B16: Sub-Total | E16: =E10+E11+E12-E13+E14-E15 -> 9229178.67
A18: B. Purchases
B19: Economy Purchases | C19: (+) | E19: 4229451.1
B20: Other Purchases | C20: (+) | E20: 0
B21: Other Purchases (substitute for Forced Outage(a)) | C21: (-) | E21: 1209768.1
B22: Less purchases above highest cost units | C22: (-) | E22: 5918.649669
B23: Sub-Total | E23: =SUM(E19:E20)-E21-E22 -> 3013764.35
A25: C. Non-Native Sales Fuel Costs | C25: (-) | E25: 931632.4
A27: D. Total Fuel Costs (A + B - C) | E27: =E16+E23-E25 -> 11311310.62
A29: E. Total Fuel Costs Previously Reported | C29: (-) | E29: 11891400.73
A31: F. Prior Period Adjustment | C31: (+) | E31: 0
A33: G. Adjustment due to PJM Resettlements | E33: =E27-E29+E31 -> -580090.1097
B36: Note: (a) Forced Outage as defined in 807 KAR 5:056.

Sheet Sch 7 - Prior Period Act
A2: DUKE ENERGY KENTUCKY
A3: PRIOR PERIOD CORRECTIONS
A4: FUEL COST SCHEDULE
B8: Expense Month: Month Year
E9: Original | G9: Revised | I9: Adjustment
E10: Exp Month: Month Year | G10: Updated in Exp Month: Month Year | I10: Dollars ($)
A11: A. Company Generation
B12: Coal Burned | C12: (+) | E12: 0 | G12: 0 | I12: =G12-E12 -> 0
B13: Oil Burned | C13: (+) | E13: 0 | G13: 0 | I13: 0
B14: Gas Burned | C14: (+) | E14: 0 | G14: 0 | I14: 0
B15: Net Fuel Related RTO Billing Line Items | C15: (-) | E15: 0 | G15: 0 | I15: 0
B16: Fuel (assigned cost during Forced Outage(a)) | C16: (+) | E16: 0 | G16: 0 | I16: 0
B17: Fuel (substitute cost during Forced Outage(a)) | C17: (-) | E17: 0 | G17: 0 | I17: 0
B18: Sub-Total | E18: =E12+E13+E14-E15+E16-E17 -> 0 | G18: =G12+G13+G14-G15+G16-G17 -> 0 | I18: =I12+I13+I14-I15+I16-I17 -> 0
A20: B. Purchases
B21: Economy Purchases | C21: (+) | E21: 0 | G21: 0 | I21: =G21-E21 -> 0
B22: Other Purchases | C22: (+) | E22: 0 | G22: 0 | I22: =G22-E22 -> 0
B23: Other Purchases (substitute for Forced Outage(a)) | C23: (-) | E23: 0 | G23: 0 | I23: =G23-E23 -> 0
B24: Less purchases above highest cost units | C24: (-) | E24: 0 | G24: 0 | I24: =G24-E24 -> 0
B25: Sub-Total | E25: =SUM(E21:E22)-E23-E24 -> 0 | G25: =SUM(G21:G22)-G23-G24 -> 0 | I25: =G25-E25 -> 0
A27: C. Non-Native Sales Fuel Costs | E27: 0 | G27: 0 | I27: =G27-E27 -> 0
A29: D. Total Fuel Costs (A + B - C) | E29: =E18+E25-E27 -> 0 | G29: =G18+G25-G27 -> 0 | I29: =G29-E29 -> 0
A31: E. Total Fuel Costs Previously Reported | E31: 0 | G31: 0 | I31: =G31-E31 -> 0
A33: F. Prior Period Adjustment | E33: 0 | G33: 0 | I33: =G33-E33 -> 0
A35: G. Adjustment due to PJM Resettlements | E35: =E29-E31+E33 -> 0 | G35: =G29-G31+G33 -> 0 | I35: =G35-E35 -> 0
B38: Note: (a) Forced Outage as defined in 807 KAR 5:056.
B43: Expense Month: | E43: June 2019 | G43: =E43 -> June 2019 | I43: Total
E44: Original | G44: Revised | I44: Dollars ($)
E45: Recorded in Exp Month: October 2019 | G45: Updated in Exp Month: December 2019
A46: A. Company Generation
B47: Coal Burned | C47: (+) | E47: 0 | G47: 0 | I47: =G47-E47 -> 0
B48: Oil Burned | C48: (+) | I48: =G48-E48 -> 0
B49: Gas Burned | C49: (+) | I49: 0
B50: Net Fuel Related RTO Billing Line Items | C50: (-) | I50: 0
B51: Fuel (assigned cost during Forced Outage(a)) | C51: (+) | I51: 0
B52: Fuel (substitute cost during Forced Outage(a)) | C52: (-) | E52: 0 | G52: 0 | I52: 0
B53: Sub-Total | E53: =E47+E48+E49-E50+E51-E52 -> 0 | G53: =G47+G48+G49-G50+G51-G52 -> 0 | I53: =I47+I48+I49-I50+I51-I52 -> 0
A55: B. Purchases
B56: Economy Purchases | C56: (+) | E56: 0 | G56: 0 | I56: =G56-E56 -> 0
B57: Other Purchases | C57: (+)
B58: Other Purchases (substitute for Forced Outage(a)) | C58: (-) | E58: 0 | G58: 0 | I58: =G58-E58 -> 0
B59: Less purchases above highest cost units | C59: (-)
B60: Sub-Total | E60: =SUM(E56:E57)-E58-E59 -> 0 | G60: =SUM(G56:G57)-G58-G59 -> 0 | I60: =G60-E60 -> 0
A62: C. Non-Native Sales Fuel Costs | I62: =G62-E62 -> 0
A64: D. Total Fuel Costs (A + B - C) | E64: =E53+E60-E62 -> 0 | G64: =G53+G60-G62 -> 0 | I64: =G64-E64 -> 0
A66: E. Total Fuel Costs Previously Reported | E66: 0 | G66: 0 | I66: =G66-E66 -> 0
A68: F. Prior Period Adjustment | E68: 0 | G68: 0 | I68: =G68-E68 -> 0
A70: G. Adjustment due to PJM Resettlements | E70: =E64-E66+E68 -> 0 | G70: =G64-G66+G68 -> 0 | I70: =G70-E70 -> 0
B73: Note: (a) Forced Outage as defined in 807 KAR 5:056.
